Workbook

Sheet Диагност. р. по рус. яз
A1: Диагностическая работа по русскому языку. 3 класс.1 полугодие
A2: Фамилия Имя | B2: Классификация | C2: Исключение и обобщение | D2: Анализ и синтез | E2: Аналогия | F2: Средний балл
A3: Боржемская Ксения | B3: 2 | C3: 3 | D3: 2 | E3: 3 | F3: =AVERAGE(B3:E3) -> 2.5
A4: Володина Софья | B4: 1 | C4: 1 | D4: 2 | E4: 3 | F4: =AVERAGE(B4:E4) -> 1.75
A5: Денисов Илья | B5: 1 | C5: 1 | D5: 1 | E5: 3 | F5: =AVERAGE(B5:E5) -> 1.5
A6: Егорова Анна | B6: 2 | C6: 1 | D6: 1 | E6: 1 | F6: =AVERAGE(B6:E6) -> 1.25
A7: Ермаков Витя | B7: 2 | C7: 1 | D7: 1 | E7: 3 | F7: =AVERAGE(B7:E7) -> 1.75
A8: Каневский Даниил | B8: 2 | C8: 2 | D8: 1 | E8: 2 | F8: =AVERAGE(B8:E8) -> 1.75
A9: Карабанова Анна | B9: 2 | C9: 1 | D9: 1 | E9: 2 | F9: =AVERAGE(B9:E9) -> 1.5
A10: Комарецкая Евгения | B10: 2 | C10: 1 | D10: 1 | E10: 3 | F10: =AVERAGE(B10:E10) -> 1.75
A11: Майборода Иван | B11: 2 | C11: 1 | D11: 1 | E11: 3 | F11: =AVERAGE(B11:E11) -> 1.75
A12: Машарская Светлана | B12: 2 | C12: 3 | D12: 3 | E12: 3 | F12: =AVERAGE(B12:E12) -> 2.75
A13: Опаницын Степан | B13: 2 | C13: 2 | D13: 2 | E13: 3 | F13: =AVERAGE(B13:E13) -> 2.25
A14: Раздобудько Александр | B14: 2 | C14: 1 | D14: 2 | E14: 3 | F14: =AVERAGE(B14:E14) -> 2
A15: Ростов Дмитрий | B15: 1 | C15: 2 | D15: 3 | E15: 3 | F15: =AVERAGE(B15:E15) -> 2.25
A16: Салай Дмитрий | B16: 2 | C16: 3 | D16: 2 | E16: 2 | F16: =AVERAGE(B16:E16) -> 2.25
A17: Семенов Максим | B17: 3 | C17: 4 | D17: 4 | E17: 4 | F17: =AVERAGE(B17:E17) -> 3.75
A18: Смольянинова Дарья | B18: 1 | C18: 1 | D18: 2 | E18: 2 | F18: =AVERAGE(B18:E18) -> 1.5
A19: Суховеев Михаил | B19: 2 | C19: 3 | D19: 3 | E19: 3 | F19: =AVERAGE(B19:E19) -> 2.75
A20: Федотов Николай | B20: 1 | C20: 1 | D20: 2 | E20: 3 | F20: =AVERAGE(B20:E20) -> 1.75
A21: Цебенко Валерия | B21: 2 | C21: 2 | D21: 3 | E21: 2 | F21: =AVERAGE(B21:E21) -> 2.25
A22: Чернышев Егор | B22: 1 | C22: 2 | D22: 2 | E22: 3 | F22: =AVERAGE(B22:E22) -> 2
A24: Средний балл | B24: =AVERAGE(B3:B23) -> 1.75 | C24: =AVERAGE(C3:C23) -> 1.8 | D24: =AVERAGE(D3:D23) -> 1.95 | E24: =AVERAGE(E3:E23) -> 2.7 | F24: =AVERAGE(B24:E24) -> 2.05

Sheet Диагност. работа по матем.
A1: Диагностическая работа по математике. 3 класс.1 полугодие.
A2: Фамилия Имя | B2: Классификация | C2: Обобщение и исключение | D2: Анализ и синтез | E2: Средний балл
A3: Боржемская Ксения | B3: 2 | C3: 2 | D3: 3 | E3: =AVERAGE(B3:D3) -> 2.333333333
A4: Володина Софья | B4: 1 | C4: 0 | D4: 1 | E4: =AVERAGE(B4:D4) -> 0.6666666667
A5: Денисов Илья | B5: 1 | C5: 1 | D5: 3 | E5: =AVERAGE(B5:D5) -> 1.666666667
A6: Егорова Анна | B6: 1 | C6: 0 | D6: 1 | E6: =AVERAGE(B6:D6) -> 0.6666666667
A7: Иванова Лера | B7: 2 | C7: 1 | D7: 2 | E7: =AVERAGE(B7:D7) -> 1.666666667
A8: Каневский Даниил | B8: 1 | C8: 2 | D8: 3 | E8: =AVERAGE(B8:D8) -> 2
A9: Карабанова Анна | B9: 2 | C9: 1 | D9: 1 | E9: =AVERAGE(B9:D9) -> 1.333333333
A10: Комарецкая Евгения | B10: 2 | C10: 1 | D10: 1 | E10: =AVERAGE(B10:D10) -> 1.333333333
A11: Майборода Иван | B11: 0 | C11: 2 | D11: 2 | E11: =AVERAGE(B11:D11) -> 1.333333333
A12: Машарская Светлана | B12: 3 | C12: 1 | D12: 3 | E12: =AVERAGE(B12:D12) -> 2.333333333
A13: Опаницын Степан | B13: 1 | C13: 2 | D13: 3 | E13: =AVERAGE(B13:D13) -> 2
A14: Раздобудько Александр | B14: 2 | C14: 0 | D14: 1 | E14: =AVERAGE(B14:D14) -> 1
A15: Ростов Дмитрий | B15: 2 | C15: 0 | D15: 2 | E15: =AVERAGE(B15:D15) -> 1.333333333
A16: Салай Дмитрий | B16: 2 | C16: 1 | D16: 1 | E16: =AVERAGE(B16:D16) -> 1.333333333
A17: Семенов Максим | B17: 2 | C17: 1 | D17: 2 | E17: =AVERAGE(B17:D17) -> 1.666666667
A18: Смольянинова Дарья | B18: 1 | C18: 0 | D18: 0 | E18: =AVERAGE(B18:D18) -> 0.3333333333
A19: Суховеев Михаил | B19: 1 | C19: 3 | D19: 3 | E19: =AVERAGE(B19:D19) -> 2.333333333
A20: Федотов Николай | B20: 1 | C20: 0 | D20: 2 | E20: =AVERAGE(B20:D20) -> 1
A21: Цебенко Валерия | B21: 1 | C21: 2 | D21: 0 | E21: =AVERAGE(B21:D21) -> 1
A22: Чернышев Егор | B22: 3 | C22: 3 | D22: 3 | E22: =AVERAGE(B22:D22) -> 3
A24: Средний балл | B24: =AVERAGE(B3:B23) -> 1.55 | C24: =AVERAGE(C3:C23) -> 1.15 | D24: =AVERAGE(D3:D23) -> 1.85 | E24: =AVERAGE(B24:D24) -> 1.516666667
